bitfinex-derivatives/quotes_SOLF0:USTF0_20251020
["timestamp","ask_amount","ask_price","bid_price","bid_amount"]
[1760996816289,2.78,189.45,189.42,43.66]
[1760996816478,2.78,189.45,189.43,2.69]
[1760996816788,2.78,189.45,189.44,43.64]
[1760996817379,2.78,189.45,189.43,43.64]
[1760996817782,4.7499,189.45,189.43,43.64]
[1760996817982,2.69,189.44,189.43,43.64]
[1760996818183,2.69,189.44,189.41,2.69]
[1760996818383,2.69,189.44,189.42,43.64]
[1760996818884,2.69,189.44,189.43,43.64]
[1760996828098,2.69,189.44,189.43,46.27]
[1760996828298,7.4399,189.45,189.43,46.27]
[1760996831894,7.4402,189.44,189.4,2.63]
[1760996832086,2.69,189.43,189.41,43.64]
[1760996833299,2.69,189.43,189.41,46.27]
[1760996835404,2.69,189.43,189.41,2.63]
[1760996835809,2.72,189.42,189.39,2.87]
[1760996839407,2.72,189.42,189.39,6.03521688]
[1760996839904,2.72,189.42,189.39,3.16521688]
[1760996840111,2.72,189.42,189.39,6.03521688]
[1760996842205,2.72,189.41,189.37,6.03521688]
[1760996843516,2.72,189.41,189.38,2.87]
[1760996844117,7.4712,189.4,189.38,2.87]
[1760996845219,2.72,189.39,189.38,2.87]
[1760996847819,2.72,189.39,189.34,51.55771688]
[1760996847820,7.4114,189.39,189.35,2.65]
[1760996852523,2.66,189.43,189.32,5.81521688]
[1760996853027,2.66,189.34,189.32,3.16521688]
[1760996853221,2.66,189.34,189.32,5.81521688]
[1760996854021,2.66,189.34,189.32,2.65]
[1760996856323,7.4127,189.34,189.32,2.65]
[1760996856514,2.66,189.33,189.32,2.65]
[1760996860122,2.66,189.33,189.29,2.65]
[1760996860321,2.66,189.33,189.31,2.65]
[1760996863129,2.66,189.33,189.3,5.81521688]
[1760996863332,4.7529,189.33,189.26,51.0446]
[1760996863631,2.66,189.32,189.27,3.16521688]
[1760996863827,2.66,189.32,189.28,2.65]
[1760996866528,4.7529,189.33,189.28,2.65]
[1760996866729,2.66,189.32,189.28,2.65]
[1760996867035,7.4129,189.33,189.28,2.65]
[1760996867533,2.66,189.32,189.28,2.65]
[1760996867727,2.66,189.32,189.27,4.7542]
[1760996867922,2.66,189.32,189.26,43.64]
[1760996868329,2.66,189.37,189.25,12.65]
[1760996868529,2.66,189.36,189.25,10.0]
[1760996869121,4.7542,189.28,189.25,10.0]
[1760996869335,2.66,189.27,189.25,10.0]
[1760996870123,2.66,189.26,189.25,10.0]
[1760996870330,2.66,189.25,189.19,2.65]
[1760996870529,2.66,189.25,189.18,4.7564]
[1760996870730,2.66,189.25,189.19,2.0307769]
[1760996871236,2.66,189.25,189.18,2.0307769]
[1760996871429,2.66,189.25,189.2,2.0307769]
[1760996871735,2.66,189.25,189.21,2.65]
[1760996871938,2.66,189.25,189.23,2.65]
[1760996872836,2.66,189.25,189.22,2.0307769]
[1760996873135,2.66,189.25,189.21,2.65]
[1760996877741,2.66,189.25,189.21,4.7557]
[1760996877948,4.7544,189.27,189.22,2.71]
[1760996878240,2.66,189.26,189.22,2.71]
[1760996881438,2.66,189.26,189.21,4.7557]
[1760996881743,2.66,189.26,189.2,2.71]
[1760996882250,2.66,189.24,189.2,2.71]
[1760996887149,2.66,189.23,189.17,2.71]
[1760996887742,2.66,189.23,189.18,4.7565]
[1760996887944,2.66,189.23,189.19,2.71]
[1760996888447,2.66,189.23,189.16,7.467]
[1760996888848,2.66,189.22,189.16,7.467]
[1760996889153,2.66,189.22,189.17,2.71]
[1760996890555,2.66,189.22,189.18,2.71]
[1760996892959,4.7555,189.23,189.18,2.71]
[1760996893254,7.4155,189.23,189.18,2.71]
[1760996893856,2.66,189.22,189.18,2.71]
[1760996899058,2.72,189.21,189.17,2.83]
[1760996902159,7.4753,189.24,189.17,2.83]
[1760996903062,7.4753,189.24,189.18,7.5865]
[1760996903764,7.4753,189.24,189.19,2.83]
[1760996904160,2.72,189.23,189.19,2.83]
[1760996905458,4.7553,189.24,189.19,2.83]
[1760996905663,2.72,189.23,189.19,2.83]
[1760996905865,2.72,189.23,189.2,2.83]
[1760996906461,4.7507769,189.25,189.2,2.83]
[1760996907565,2.78,189.24,189.13,2.76]
[1760996907861,2.0307769,189.22,189.13,2.76]
[1760996908069,2.78,189.21,189.13,2.76]
[1760996909570,2.78,189.21,189.14,2.76]
[1760996909962,2.78,189.18,189.14,2.76]
[1760996914374,6.78481787,189.17,189.14,2.76]
[1760996914576,2.78,189.16,189.14,2.76]
[1760996914875,2.78,189.16,189.12,2.76]
[1760996916480,2.78,189.15,189.12,2.76]
[1760996917373,2.78,189.15,189.07,2.76]
[1760996918078,2.78,189.15,189.08,7.5189]
[1760996918277,2.78,189.12,189.08,7.5189]
[1760996919379,2.78,189.12,189.09,2.76]
[1760996920584,2.0307769,189.1,188.97,2.76]
[1760996920784,2.78,189.08,188.98,2.76]
[1760996921080,2.78,189.06,188.98,2.76]
[1760996921882,2.78,189.06,189.0,2.76]
[1760996922486,6.81218728,189.08,189.0,2.76]
[1760996922686,2.78,189.08,189.0,2.76]
[1760996922983,2.78,189.07,189.0,2.76]
[1760996923180,2.78,189.06,188.93,2.76]
[1760996923384,2.78,189.06,188.95,2.76]
[1760996923886,2.78,189.06,188.96,2.76]
[1760996924781,4.8107769,189.05,188.97,2.76]
[1760996925588,4.8107769,189.05,188.98,2.76]
[1760996926083,2.0307769,189.05,188.98,2.76]
[1760996926382,2.78,189.04,188.95,2.76]
[1760996927880,2.0307769,189.03,188.95,4.7623]
[1760996928086,2.78,189.02,188.95,4.7623]
[1760996928790,2.78,189.02,188.95,7.5223]
[1760996930188,2.78,189.02,188.95,4.7623]
[1760996930392,2.78,189.02,188.95,7.5223]
[1760996932480,2.78,189.02,188.95,2.76]
[1760996933287,2.78,189.01,188.95,2.76]
[1760996934292,2.78,189.0,188.95,2.76]
[1760996934790,2.78,189.0,188.93,2.76]
[1760996935695,2.78,188.99,188.93,2.76]
[1760996936295,7.5415,188.99,188.93,2.76]
[1760996936697,2.78,188.98,188.93,2.76]
[1760996936898,2.78,188.97,188.93,2.76]
[1760996937789,2.78,188.97,188.88,4.764]
[1760996937996,2.78,188.97,188.89,2.69]
[1760996939100,2.78,188.97,188.9,2.69]
[1760996940394,2.8,188.99,188.84,2.69]
[1760996941099,2.8,188.95,188.83,2.69]
[1760996941402,2.8,188.95,188.86,2.69]
[1760996941600,2.8,188.95,188.89,2.69]
[1760996941793,2.8,189.0,188.89,2.69]
[1760996942406,4.7615,188.99,188.89,7.4537]
[1760996942599,2.8,188.98,188.9,2.69]
[1760996942998,2.8,188.95,188.87,2.69]
[1760996944997,2.8,188.95,188.88,4.764]
[1760996945200,2.8,188.95,188.89,2.69]
[1760996946508,2.8,188.95,188.9,2.69]
[1760996947207,2.8,188.95,188.91,2.69]
[1760996947399,2.8,188.98,188.91,2.69]
[1760996948995,2.8,188.98,188.91,4.7632]
[1760996949199,2.8,188.98,188.92,2.69]
[1760996949810,2.8,188.98,188.93,2.69]
[1760996950608,2.8,188.98,188.93,4.7627]
[1760996950907,2.8,188.98,188.94,2.69]
[1760996951598,2.8,188.98,188.95,2.69]
[1760996951793,4.7608,189.02,188.95,2.69]
[1760996951794,7.5608,189.02,188.95,2.69]
[1760996952608,16.08998477,189.09,188.96,2.69]
[1760996952609,2.8,189.08,188.96,2.69]
[1760996952804,2.8,189.08,188.97,2.69]
[1760996953209,2.8,189.08,189.01,7.4507]
[1760996954009,2.8,189.08,189.02,4.7605]
[1760996954202,2.8,189.08,189.02,7.4505]
[1760996956112,2.8,189.08,189.02,2.69]
[1760996958115,2.8,189.08,189.03,7.4002]
[1760996958312,2.8,189.08,189.04,2.64]
[1760996958612,3.96572819,189.11,189.05,2.64]
[1760996958811,3.96572819,189.1,189.05,2.64]
[1760996959013,3.96572819,189.12,189.05,2.64]
[1760996959213,3.96572819,189.11,189.05,2.64]
[1760996959413,3.96572819,189.1,189.05,2.64]
[1760996959606,3.96572819,189.12,189.05,2.64]
[1760996959911,3.96572819,189.11,189.05,2.64]
[1760996960115,3.96572819,189.1,189.06,2.64]
[1760996960317,3.96572819,189.09,189.06,2.64]
[1760996960713,2.68,189.1,189.06,2.64]
[1760996960913,3.96572819,189.12,189.06,2.64]
[1760996961107,2.68,189.1,189.06,2.64]
[1760996961413,3.96572819,189.09,189.06,2.64]
[1760996962213,2.68,189.12,189.06,2.64]
[1760996962416,6.66913444,189.11,189.06,2.64]
[1760996962615,3.98913444,189.1,189.06,2.64]
[1760996962921,3.98947914,189.12,189.06,2.64]
[1760996963110,6.66947914,189.11,189.06,2.64]
[1760996963311,3.98947914,189.1,189.06,2.64]
[1760996963518,2.68,189.11,189.06,2.64]
[1760996963718,3.99165046,189.1,189.06,2.64]
[1760996964019,2.68,189.11,189.06,2.64]
[1760996964221,3.9916518,189.1,189.06,2.64]
[1760996964426,2.68,189.11,189.06,2.64]
[1760996964719,3.99378842,189.1,189.06,2.64]
[1760996964916,2.68,189.11,189.06,2.64]
[1760996965117,3.99383769,189.1,189.06,2.64]
[1760996965320,2.68,189.11,189.06,2.64]
[1760996965626,3.99595905,189.1,189.06,2.64]
[1760996965819,7.5883,189.14,189.06,2.64]
[1760996966013,3.99613169,189.13,189.06,2.64]
[1760996966317,6.67613169,189.12,189.06,4.7595]
[1760996966521,2.68,189.12,189.07,2.64]
[1760996966713,0.1506,189.14,189.07,2.64]
[1760996966919,3.99591992,189.13,189.07,2.64]
[1760996967219,0.1506,189.14,189.08,2.64]
[1760996967416,3.99507709,189.13,189.08,2.64]
[1760996967619,0.1506,189.14,189.08,2.64]
[1760996967916,3.99507932,189.13,189.08,2.64]
[1760996968118,3.99488991,189.13,189.09,2.76]
[1760996968324,6.65488991,189.15,189.09,2.76]
[1760996968529,3.99488991,189.14,189.09,2.76]
[1760996968722,3.99488991,189.13,189.09,4.7587]
[1760996968916,2.66,189.14,189.1,2.76]
[1760996970227,2.66,189.18,189.1,7.5184]
[1760996970527,2.66,189.18,189.11,2.76]
[1760996978735,2.66,189.18,189.12,2.76]
[1760996979233,2.66,189.19,189.12,2.76]
[1760996981138,0.14223,189.2,189.15,2.76]
[1760996981320,2.80223,189.2,189.15,2.76]
[1760996982436,2.80223,189.2,189.15,7.5172]
[1760996982639,2.80223,189.2,189.16,2.76]
[1760996988333,0.14223,189.2,189.16,2.76]
[1760996989835,2.80223,189.2,189.16,2.76]
[1760996990340,2.66,189.2,189.16,2.76]
[1760996992035,7.93651386,189.23,189.16,2.76]
[1760996992240,10.59651386,189.23,189.16,2.76]
[1760996992738,9.44698855,189.23,189.16,2.76]
[1760996994243,9.44698855,189.23,189.17,2.76]
[1760996994742,6.78698855,189.23,189.17,2.76]
[1760996995041,2.66,189.22,189.17,2.76]
[1760996997035,2.66,189.22,189.19,7.5162]
[1760996997439,2.66,189.22,189.2,2.72]
[1760996998645,2.66,189.22,189.19,4.7562]
[1760996998844,2.66,189.22,189.14,2.72]
[1760997000048,2.66,189.22,189.16,7.4769]
[1760997001240,2.66,189.22,189.17,2.72]
[1760997006554,2.66,189.22,189.15,2.72]
[1760997010550,2.73,189.23,189.15,2.72]
[1760997010755,2.73,189.16,189.08,2.72]
[1760997010955,2.73,189.13,189.04,2.03148855]
[1760997011153,2.73,189.13,189.05,2.72]
[1760997011348,5.87980781,189.14,189.05,2.72]
[1760997011349,2.73,189.12,189.05,2.72]
[1760997011951,2.73,189.11,189.05,2.72]
[1760997012156,2.73,189.11,189.02,4.75148855]
[1760997012355,2.73,189.09,189.02,4.75148855]
[1760997012549,2.73,189.09,189.02,9.51198855]
[1760997012752,2.73,189.09,189.02,7.4805]
[1760997013249,2.73,189.09,189.02,2.72]
[1760997013457,2.03148855,189.08,189.02,2.72]
[1760997013651,2.73,189.07,189.02,2.72]
[1760997022060,2.73,189.07,189.03,2.83]
[1760997022453,4.7588,189.1,189.03,2.83]
[1760997022655,2.92,189.1,189.05,2.83]
[1760997023361,2.92,189.1,189.07,2.83]
[1760997026264,4.95148855,189.13,189.07,2.83]
[1760997026461,2.92,189.13,189.08,2.83]
[1760997027363,2.92,189.13,189.09,2.82]
[1760997027957,2.92,189.13,189.09,4.7587]
[1760997028159,2.92,189.13,189.1,2.82]
[1760997029262,2.65,189.16,189.1,2.82]
[1760997029458,2.65,189.16,189.11,4.7583]
[1760997029666,2.65,189.16,189.12,2.82]
[1760997032358,2.65,189.16,189.12,7.578]
[1760997032566,2.65,189.16,189.13,2.82]
[1760997037670,2.65,189.17,189.13,2.82]
[1760997037870,2.65,189.17,189.14,2.82]
[1760997038071,46.59,189.2,189.14,2.82]
[1760997038271,2.65,189.19,189.14,2.82]
[1760997038470,2.65,189.19,189.15,2.82]
[1760997038668,46.59,189.2,189.15,2.82]
[1760997039068,2.65,189.19,189.15,2.82]
[1760997039272,2.65,189.25,189.18,2.82]
[1760997039470,2.65,189.22,189.18,2.82]
[1760997041465,2.65,189.22,189.18,7.5765]
[1760997041972,2.65,189.22,189.19,2.82]
[1760997057879,2.65,189.22,189.18,2.9]
[1760997060078,2.65,189.22,189.19,2.9]
[1760997062679,43.86,189.21,189.11,2.9]
[1760997062883,2.88,189.19,189.11,2.9]
[1760997063977,2.88,189.17,189.12,4.7579]
[1760997064283,2.88,189.17,189.12,7.6579]
[1760997065376,2.88,189.15,189.1,4.7586]
[1760997066177,2.88,189.14,189.08,4.7589]
[1760997066570,2.88,189.14,189.08,7.6589]
[1760997066783,2.88,189.14,189.09,7.6587]
[1760997067988,2.88,189.14,189.1,2.9]
[1760997070588,2.88,189.13,189.1,2.9]
[1760997073686,6.69525794,189.14,189.1,2.9]
[1760997073886,2.88,189.13,189.1,2.9]
[1760997074080,6.69525794,189.14,189.1,2.9]
[1760997077189,2.74,189.13,189.1,2.9]
[1760997082592,2.74,189.13,189.09,7.3987]
[1760997088501,2.74,189.13,189.1,2.9]
[1760997088898,2.74,189.13,189.11,2.9]
[1760997089097,2.8,189.15,189.11,2.9]
[1760997089298,2.8,189.18,189.11,2.9]
[1760997089499,2.8,189.17,189.11,2.9]
[1760997091105,2.8,189.17,189.13,2.9]
[1760997092008,7.5569,189.17,189.13,2.9]
[1760997092197,2.8,189.16,189.13,2.9]
[1760997094108,2.8,189.16,189.13,7.6577]
[1760997094498,2.8,189.16,189.14,2.9]
[1760997094699,6.60919158,189.18,189.14,4.7575]
[1760997094899,6.60919158,189.18,189.15,2.9]
[1760997096002,6.60919158,189.18,189.15,7.6573]
[1760997096210,6.60919158,189.18,189.16,2.9]
[1760997099010,3.80919158,189.18,189.17,2.9]
[1760997099213,6.60919158,189.2,189.17,2.9]
[1760997099417,6.60919158,189.19,189.17,2.9]
[1760997099714,2.8,189.19,189.17,2.9]
[1760997099903,6.60919158,189.19,189.17,2.9]
[1760997100103,2.8,189.19,189.17,2.9]
[1760997100415,6.60919158,189.19,189.17,2.9]
[1760997100616,2.8,189.19,189.17,2.9]
[1760997100806,6.60919158,189.19,189.17,2.9]
[1760997101008,2.8,189.19,189.17,2.9]
[1760997101217,6.60919158,189.19,189.17,2.9]
[1760997101415,2.8,189.19,189.17,2.9]
[1760997101609,6.60919158,189.19,189.17,2.9]
[1760997101811,2.8,189.19,189.17,2.9]
[1760997102011,6.60919158,189.19,189.17,2.9]
[1760997102308,2.8,189.19,189.14,4.7574]
[1760997102514,6.60919158,189.18,189.15,2.9]
[1760997102714,2.8,189.18,189.15,2.9]
[1760997102906,2.8,189.17,189.15,2.9]
[1760997105815,2.8,189.17,189.12,4.758]
[1760997106015,2.8,189.15,189.1,2.9]
[1760997106221,2.8,189.14,189.1,2.9]
[1760997106519,2.8,189.13,189.1,2.9]
[1760997115632,2.8,189.13,189.08,4.759]
[1760997115932,2.8,189.13,189.09,2.9]
[1760997124124,2.8,189.13,189.09,7.6588]
[1760997124329,7.5477,189.14,189.1,2.85]
[1760997124628,6.60154695,189.13,189.1,2.85]
[1760997124829,6.60170909,189.13,189.11,2.85]
[1760997125127,11.0645362,189.15,189.11,2.85]
[1760997125332,3.81170909,189.14,189.11,2.85]
[1760997125628,8.27466287,189.17,189.11,2.85]
[1760997125828,3.81170909,189.16,189.11,2.85]
[1760997126028,3.81170909,189.15,189.13,4.7578]
[1760997126217,3.81170909,189.16,189.14,2.85]
[1760997126417,3.81233869,189.17,189.14,2.85]
[1760997126724,2.79,189.17,189.14,2.85]
[1760997127436,3.81208119,189.18,189.15,2.85]
[1760997127727,4.46327143,189.19,189.15,2.85]
[1760997128029,3.81208845,189.18,189.15,2.85]
[1760997128227,3.81227597,189.19,189.17,2.85]
[1760997128428,4.46327143,189.2,189.17,2.85]
[1760997128628,3.81184516,189.19,189.17,2.85]
[1760997128928,4.46327143,189.2,189.17,2.85]
[1760997129230,3.81184516,189.19,189.17,2.85]
[1760997129531,4.46327143,189.2,189.17,2.85]
[1760997129724,3.81147524,189.19,189.17,2.85]
[1760997129922,4.46327143,189.2,189.17,2.85]
[1760997130128,3.81147524,189.19,189.17,2.85]
[1760997130422,3.81078975,189.18,189.16,4.7569]
[1760997130623,2.79,189.18,189.15,2.85]
[1760997130929,6.60078975,189.18,189.15,2.85]
[1760997131230,2.79,189.18,189.15,2.85]
[1760997131430,6.60078975,189.18,189.15,2.85]
[1760997131731,2.79,189.18,189.15,2.85]
[1760997132331,6.60009742,189.17,189.14,7.6074]
[1760997132523,2.79,189.17,189.14,7.6074]
[1760997132724,6.60009742,189.17,189.14,7.6074]
[1760997132926,2.79,189.17,189.13,2.85]
[1760997133128,2.79,189.15,189.1,2.85]
[1760997134935,2.79,189.15,189.1,7.6085]
[1760997135136,2.79,189.15,189.11,2.85]
[1760997136933,2.79,189.15,189.11,7.6082]
[1760997137936,2.79,189.15,189.12,2.89]
[1760997147739,2.73,189.16,189.12,2.89]
[1760997148538,2.73,189.16,189.12,7.648]
[1760997148746,4.7565,189.19,189.13,2.79]
[1760997148946,3.80665593,189.18,189.13,2.79]
[1760997149150,3.80665593,189.17,189.13,2.79]
[1760997149356,7.20755718,189.18,189.13,2.79]
[1760997149547,3.80625494,189.17,189.14,2.79]
[1760997149742,7.20755718,189.18,189.14,2.79]
[1760997150045,3.80625494,189.17,189.14,2.79]
[1760997150446,2.73,189.18,189.14,2.79]
[1760997150645,3.80689932,189.17,189.14,7.5475]
[1760997150847,6.53689932,189.19,189.15,2.79]
[1760997151053,6.53689932,189.18,189.15,2.79]
[1760997151351,3.80689932,189.17,189.15,2.79]
[1760997151750,3.80689932,189.17,189.16,2.79]
[1760997151944,3.80689932,189.19,189.16,2.79]
[1760997152144,3.80689932,189.18,189.16,2.79]
[1760997152352,3.80689932,189.19,189.16,2.79]
[1760997152550,3.80689932,189.18,189.16,2.79]
[1760997152752,6.53689932,189.19,189.16,2.79]
[1760997152944,3.80689932,189.18,189.16,2.79]
[1760997153345,2.73,189.19,189.16,2.79]
[1760997155245,7.20814963,189.2,189.16,2.79]
[1760997155442,3.80663177,189.19,189.16,2.79]
[1760997155646,2.73,189.19,189.16,2.79]
[1760997156362,6.53652881,189.19,189.16,2.79]
[1760997156551,2.73,189.19,189.16,2.79]
[1760997156864,3.80652881,189.18,189.16,2.79]
[1760997157059,2.73,189.19,189.16,2.79]
[1760997159360,2.73,189.19,189.05,9.83245168]
[1760997159567,2.0334456,189.16,189.07,2.0334456]
[1760997159764,2.73,189.14,189.08,2.79]
[1760997160157,6.53569628,189.14,189.08,2.79]
[1760997161564,2.73,189.14,189.08,2.79]
[1760997161763,6.53569628,189.14,189.08,2.79]
[1760997161966,2.73,189.14,189.08,2.79]
[1760997162165,6.53569628,189.14,189.08,2.79]
[1760997162366,2.73,189.14,189.08,2.79]
[1760997162569,6.53569628,189.14,189.08,2.79]
[1760997162865,2.73,189.14,189.08,2.79]
[1760997163060,6.53569628,189.14,189.08,2.79]
[1760997163260,2.73,189.14,189.08,2.79]
[1760997163464,6.53569628,189.14,189.08,2.79]
[1760997163662,2.73,189.14,189.08,2.79]
[1760997163861,6.53569628,189.14,189.08,2.79]
[1760997164061,2.73,189.14,189.08,2.79]
[1760997164263,6.53569628,189.14,189.08,2.79]
[1760997164570,2.73,189.14,189.08,2.79]
[1760997164867,6.53569628,189.14,189.08,2.79]
[1760997165062,2.73,189.14,189.08,2.79]
[1760997165263,6.53569628,189.14,189.08,2.79]
[1760997165570,2.73,189.14,189.08,2.79]
[1760997165769,6.53569628,189.14,189.08,2.79]
[1760997166070,2.73,189.14,189.08,2.79]
[1760997166270,6.53569628,189.14,189.08,2.79]
[1760997166570,2.73,189.14,189.08,2.79]
[1760997166869,6.53569628,189.14,189.08,2.79]
[1760997167165,2.73,189.14,189.08,2.79]
[1760997167372,6.53569628,189.14,189.08,2.79]
[1760997167570,2.73,189.14,189.08,2.79]
[1760997167764,6.53569628,189.14,189.08,2.79]
[1760997168171,2.73,189.14,189.08,2.79]
[1760997168569,2.73,189.14,189.09,2.79]
[1760997170775,6.53578793,189.14,189.09,2.79]
[1760997171279,6.53566644,189.14,189.09,2.79]
[1760997171466,6.53566644,189.14,189.1,2.79]
[1760997172067,2.73,189.13,189.1,2.79]
[1760997173586,3.80566644,189.14,189.1,2.79]
[1760997173766,3.80566644,189.14,189.11,2.79]
[1760997173972,7.2058754,189.15,189.11,2.79]
[1760997174173,2.73,189.15,189.11,2.79]
[1760997174578,2.73,189.14,189.11,2.79]
[1760997174977,2.73,189.14,189.11,7.5483]
[1760997175275,4.85004874,189.18,189.12,2.79]
[1760997175670,9.44383138,189.18,189.12,2.79]
[1760997175871,4.85004874,189.18,189.12,2.79]
[1760997176282,12.17371455,189.18,189.15,2.79]
[1760997176481,7.58004874,189.18,189.15,2.79]
[1760997176980,12.17395574,189.18,189.15,2.79]
[1760997177182,7.58004874,189.18,189.15,2.79]
[1760997177681,12.17395876,189.18,189.15,2.79]
[1760997177884,7.58004874,189.18,189.15,2.79]
[1760997178479,12.17385206,189.18,189.15,2.79]
[1760997178681,7.58004874,189.18,189.15,2.79]
[1760997178982,4.05512469,189.17,189.15,2.79]
[1760997179189,4.05512469,189.16,189.15,2.79]
[1760997181276,7.58004874,189.18,189.15,2.79]
[1760997181483,4.05460475,189.17,189.15,2.79]
[1760997181682,7.58004874,189.18,189.15,2.79]
[1760997181884,4.05444025,189.17,189.15,2.79]
[1760997182084,7.58004874,189.18,189.15,2.79]
[1760997182284,4.05444025,189.17,189.15,2.79]
[1760997182475,7.58004874,189.18,189.15,2.79]
[1760997182675,4.04290703,189.17,189.15,2.79]
[1760997182879,7.58004874,189.18,189.15,7.5472]
[1760997183081,4.04282501,189.17,189.15,7.5472]
[1760997183387,7.58004874,189.18,189.15,7.5472]
[1760997183586,4.04251731,189.17,189.15,7.5472]
[1760997183884,7.58004874,189.18,189.15,7.5472]
[1760997184085,4.04257575,189.17,189.15,7.5472]
[1760997184273,7.58004874,189.18,189.15,7.5472]
[1760997184471,4.04218704,189.17,189.15,7.5472]
[1760997184675,7.58004874,189.18,189.16,2.84]
[1760997184883,4.04244273,189.17,189.16,2.84]
[1760997197194,4.85004874,189.18,189.16,2.84]
[1760997197996,4.02988715,189.17,189.16,2.84]
[1760997198294,4.85004874,189.18,189.16,2.84]
[1760997198703,4.85004874,189.18,189.17,2.68]
[1760997198886,8.87985483,189.18,189.17,2.68]
[1760997202590,4.85004874,189.18,189.17,2.68]
[1760997203191,2.78,189.17,189.14,2.68]
[1760997205008,2.78,189.17,189.15,4.7573]
[1760997206808,2.78,189.17,189.15,7.4373]
[1760997210513,7.62004874,189.18,189.16,2.78]
[1760997217721,2.77,189.17,189.16,2.78]
[1760997218609,7.62004874,189.18,189.16,2.78]
[1760997219315,4.59137419,189.17,189.16,2.78]
[1760997220022,7.36137419,189.17,189.15,4.7573]
[1760997220225,2.77,189.17,189.15,7.5373]
[1760997221321,4.85004874,189.18,189.16,2.78]
[1760997222120,7.62004874,189.18,189.16,2.78]
[1760997226920,4.55551641,189.17,189.16,2.78]
[1760997227320,7.62004874,189.18,189.16,2.78]
[1760997228221,4.85004874,189.18,189.16,2.78]
[1760997228433,7.62004874,189.18,189.16,2.78]
[1760997229622,4.85004874,189.18,189.16,2.78]
[1760997231219,4.85004874,189.18,189.17,2.78]
[1760997232018,2.77,189.24,189.19,2.78]
[1760997232228,2.77,189.22,189.19,2.78]
[1760997232421,7.39035968,189.21,189.19,2.78]
[1760997232623,4.62035968,189.2,189.19,2.78]
[1760997233327,2.77,189.21,189.19,2.78]
[1760997236629,4.56718566,189.2,189.18,4.7564]
[1760997236819,2.77,189.2,189.18,4.7564]
[1760997237220,2.77,189.2,189.18,7.5364]
[1760997238327,7.3358055,189.2,189.18,7.5364]
[1760997238529,2.77,189.2,189.18,7.5364]
[1760997239424,7.3358055,189.2,189.19,2.87]
[1760997239729,2.77,189.2,189.18,4.7564]
[1760997239930,2.77,189.2,189.18,7.6264]
[1760997240526,7.3358055,189.2,189.18,7.6264]
[1760997240728,2.77,189.2,189.18,7.6264]
[1760997242034,2.77,189.2,189.17,2.87]